[Event "Late-Titled-Tuesday-Blitz-December-26-2023"]
[Site "Chess.com"]
[Date "2023.12.26"]
[Round "5"]
[White "Dewarfd"]
[Black "czasnaszachy"]
[Result "0-1"]
[WhiteElo "2115"]
[BlackElo "2397"]
[TimeControl "180+1"]
[EndTime "14:54:03 PST"]
[Termination "czasnaszachy won on time"]

1. d4 {[%clk 0:02:59.6]} 1... Nf6 {[%clk 0:02:56.5]} 2. e3 {[%clk 0:02:55.2]}
2... g6 {[%clk 0:02:53.7]} 3. Nf3 {[%clk 0:02:49.2]} 3... Bg7 {[%clk 0:02:53.8]}
4. Be2 {[%clk 0:02:49.4]} 4... O-O {[%clk 0:02:53.7]} 5. b4 {[%clk 0:02:48.4]}
5... d6 {[%clk 0:02:49.8]} 6. Bb2 {[%clk 0:02:45.3]} 6... Nbd7 {[%clk 0:02:47]}
7. c4 {[%clk 0:02:43.8]} 7... Qe8 {[%clk 0:02:43.8]} 8. d5 {[%clk 0:02:36.5]}
8... e5 {[%clk 0:02:42.7]} 9. dxe6 {[%clk 0:02:35.5]} 9... fxe6 {[%clk
0:02:42.2]} 10. O-O {[%clk 0:02:26.2]} 10... e5 {[%clk 0:02:30.1]} 11. Qb3
{[%clk 0:02:18.7]} 11... Kh8 {[%clk 0:02:28.5]} 12. Rd1 {[%clk 0:01:46.6]} 12...
e4 {[%clk 0:02:25.8]} 13. Nd4 {[%clk 0:01:29.4]} 13... Ne5 {[%clk 0:02:25.7]}
14. Qc2 {[%clk 0:01:11.9]} 14... Bg4 {[%clk 0:02:21]} 15. h3 {[%clk 0:00:58.8]}
15... Bxe2 {[%clk 0:02:18.9]} 16. Qxe2 {[%clk 0:00:55.2]} 16... Nd3 {[%clk
0:02:14.6]} 17. Nc3 {[%clk 0:00:41.5]} 17... Nxb2 {[%clk 0:01:53.6]} 18. Qxb2
{[%clk 0:00:40.5]} 18... Qf7 {[%clk 0:01:53.8]} 19. c5 {[%clk 0:00:31.2]} 19...
d5 {[%clk 0:01:47.3]} 20. Rd2 {[%clk 0:00:21.7]} 20... Nd7 {[%clk 0:01:44.4]}
21. c6 {[%clk 0:00:10.9]} 21... Ne5 {[%clk 0:01:24]} 22. cxb7 {[%clk 0:00:07.4]}
22... Rab8 {[%clk 0:01:24.6]} 23. Qb3 {[%clk 0:00:05.9]} 23... Nc4 {[%clk
0:01:19.3]} 24. Re2 {[%clk 0:00:04.2]} 24... Rxb7 {[%clk 0:01:18.1]} 25. Rc1
{[%clk 0:00:02.9]} 25... c5 {[%clk 0:01:16.7]} 26. Nxd5 {[%clk 0:00:02.5]} 26...
Qxd5 {[%clk 0:01:13.5]} 27. Qxc4 {[%clk 0:00:02.2]} 27... Qxc4 {[%clk 0:01:13]}
28. Rxc4 {[%clk 0:00:02.4]} 28... cxd4 {[%clk 0:01:13.3]} 29. exd4 {[%clk
0:00:02.8]} 29... Re8 {[%clk 0:01:07.3]} 30. a3 {[%clk 0:00:01.8]} 30... Rd7
{[%clk 0:01:05.2]} 31. Rd2 {[%clk 0:00:01.7]} 31... Red8 {[%clk 0:01:02.7]} 0-1

[Event "Late-Titled-Tuesday-Blitz-December-26-2023"]
[Site "Chess.com"]
[Date "2023.12.26"]
[Round "5"]
[White "Mikhail_Golubev"]
[Black "ilushka"]
[Result "1-0"]
[WhiteElo "2628"]
[BlackElo "2443"]
[TimeControl "180+1"]
[EndTime "14:54:12 PST"]
[Termination "Mikhail_Golubev won by resignation"]

1. e4 {[%clk 0:02:44.9]} 1... e5 {[%clk 0:02:59.6]} 2. Nf3 {[%clk 0:02:44.9]}
2... Nc6 {[%clk 0:02:59.5]} 3. Bc4 {[%clk 0:02:44.7]} 3... Nf6 {[%clk
0:02:59.6]} 4. Ng5 {[%clk 0:02:44.3]} 4... d5 {[%clk 0:02:59.5]} 5. exd5 {[%clk
0:02:42.9]} 5... Na5 {[%clk 0:03:00]} 6. Bb5+ {[%clk 0:02:41.6]} 6... c6 {[%clk
0:03:00.3]} 7. dxc6 {[%clk 0:02:41.5]} 7... bxc6 {[%clk 0:03:01.2]} 8. Bd3
{[%clk 0:02:41.3]} 8... h6 {[%clk 0:03:00.2]} 9. Ne4 {[%clk 0:02:39.7]} 9... Nd5
{[%clk 0:03:00.2]} 10. O-O {[%clk 0:02:37.7]} 10... Nf4 {[%clk 0:02:59.5]} 11.
Re1 {[%clk 0:02:32.8]} 11... Nxd3 {[%clk 0:02:59.3]} 12. cxd3 {[%clk 0:02:33.7]}
12... Be7 {[%clk 0:02:58.6]} 13. b4 {[%clk 0:02:19.8]} 13... Nb7 {[%clk
0:02:57.4]} 14. Bb2 {[%clk 0:02:18.4]} 14... O-O {[%clk 0:02:40.9]} 15. Bxe5
{[%clk 0:02:16.9]} 15... Bxb4 {[%clk 0:02:20.6]} 16. Nbc3 {[%clk 0:02:09.9]}
16... Nc5 {[%clk 0:02:03.3]} 17. Nxc5 {[%clk 0:01:28.2]} 17... Bxc5 {[%clk
0:02:04.2]} 18. Qf3 {[%clk 0:01:27.8]} 18... Be6 {[%clk 0:01:48.2]} 19. Qxc6
{[%clk 0:01:27]} 19... Rc8 {[%clk 0:01:41.2]} 20. Qf3 {[%clk 0:01:26.1]} 20...
Bd4 {[%clk 0:01:05.2]} 21. Qg3 {[%clk 0:01:07.8]} 21... Bxe5 {[%clk 0:01:04.4]}
22. Rxe5 {[%clk 0:01:08.1]} 22... Qd4 {[%clk 0:00:50.5]} 23. Re4 {[%clk
0:01:02.1]} 23... Qd7 {[%clk 0:00:37.2]} 24. Rae1 {[%clk 0:01:00.4]} 24... Rfd8
{[%clk 0:00:36.4]} 25. d4 {[%clk 0:00:51.9]} 25... Rc4 {[%clk 0:00:15.8]} 26. d5
{[%clk 0:00:35.4]} 26... Rxe4 {[%clk 0:00:14.2]} 27. Nxe4 {[%clk 0:00:33.8]}
27... Bxd5 {[%clk 0:00:13.3]} 28. Nf6+ {[%clk 0:00:33.5]} 1-0

[Event "Late-Titled-Tuesday-Blitz-December-26-2023"]
[Site "Chess.com"]
[Date "2023.12.26"]
[Round "5"]
[White "norman927"]
[Black "ChessLebaneseSalah"]
[Result "0-1"]
[WhiteElo "2309"]
[BlackElo "2444"]
[TimeControl "180+1"]
[EndTime "14:54:13 PST"]
[Termination "ChessLebaneseSalah won on time"]

1. e4 {[%clk 0:03:00.9]} 1... c5 {[%clk 0:02:59.9]} 2. Nf3 {[%clk 0:03:00.8]}
2... d6 {[%clk 0:03:00.3]} 3. Nc3 {[%clk 0:02:58.4]} 3... Nf6 {[%clk 0:03:00.1]}
4. Bc4 {[%clk 0:02:57.5]} 4... Nc6 {[%clk 0:02:59.9]} 5. d4 {[%clk 0:02:56.2]}
5... cxd4 {[%clk 0:02:59.9]} 6. Nxd4 {[%clk 0:02:55.2]} 6... Qb6 {[%clk
0:03:00.4]} 7. Nb3 {[%clk 0:02:53.2]} 7... a6 {[%clk 0:02:59.8]} 8. Be3 {[%clk
0:02:05.1]} 8... Qc7 {[%clk 0:02:59.2]} 9. Be2 {[%clk 0:02:00.3]} 9... e6 {[%clk
0:02:50.7]} 10. Qd2 {[%clk 0:01:37]} 10... b5 {[%clk 0:02:48.9]} 11. O-O-O
{[%clk 0:01:20.1]} 11... b4 {[%clk 0:02:40.5]} 12. Na4 {[%clk 0:01:19.4]} 12...
Nxe4 {[%clk 0:02:38.6]} 13. Qd3 {[%clk 0:01:18.8]} 13... d5 {[%clk 0:02:34.6]}
14. Bf3 {[%clk 0:00:25.5]} 14... Ne5 {[%clk 0:02:26.5]} 15. Qe2 {[%clk
0:00:15.1]} 15... Nxf3 {[%clk 0:02:26.4]} 16. gxf3 {[%clk 0:00:14.9]} 16... Nf6
{[%clk 0:02:24.9]} 17. Nb6 {[%clk 0:00:14.2]} 17... Rb8 {[%clk 0:02:22.4]} 18.
Nxc8 {[%clk 0:00:14.4]} 18... Rxc8 {[%clk 0:02:20.2]} 19. Kb1 {[%clk 0:00:09.4]}
19... a5 {[%clk 0:02:19.4]} 20. Qb5+ {[%clk 0:00:08.7]} 20... Qc6 {[%clk
0:02:15.9]} 21. Qxc6+ {[%clk 0:00:06.3]} 21... Rxc6 {[%clk 0:02:16.8]} 22. Nxa5
{[%clk 0:00:07]} 22... Ra6 {[%clk 0:02:16.4]} 23. Nb3 {[%clk 0:00:06.9]} 23...
Be7 {[%clk 0:02:17]} 24. Rhg1 {[%clk 0:00:05.5]} 24... g6 {[%clk 0:02:07.9]} 25.
Bd4 {[%clk 0:00:05.7]} 25... O-O {[%clk 0:02:06.3]} 26. f4 {[%clk 0:00:03.6]}
26... Rfa8 {[%clk 0:02:06.1]} 27. a3 {[%clk 0:00:03.8]} 27... bxa3 {[%clk
0:02:05.8]} 28. bxa3 {[%clk 0:00:03.7]} 28... Rxa3 {[%clk 0:02:06.5]} 29. f5
{[%clk 0:00:02.7]} 29... exf5 {[%clk 0:02:05.9]} 30. Rde1 {[%clk 0:00:02.5]}
30... Bd8 {[%clk 0:01:55.9]} 31. Re5 {[%clk 0:00:01.9]} 31... Ne4 {[%clk
0:01:52]} 32. Rxd5 {[%clk 0:00:02]} 32... Be7 {[%clk 0:01:42.4]} 33. f3 {[%clk
0:00:02.5]} 33... Nf6 {[%clk 0:01:32.7]} 34. Rb5 {[%clk 0:00:02.8]} 34... Ne8
{[%clk 0:01:25.4]} 35. Re1 {[%clk 0:00:03.2]} 35... Nd6 {[%clk 0:01:23.8]} 36.
Rb6 {[%clk 0:00:02.8]} 36... Bf8 {[%clk 0:01:22.3]} 37. Be5 {[%clk 0:00:02.4]}
37... Nc4 {[%clk 0:01:21.7]} 38. Rb5 {[%clk 0:00:03]} 38... Nxe5 {[%clk
0:01:19.7]} 39. Rexe5 {[%clk 0:00:03.7]} 39... Bg7 {[%clk 0:01:18.9]} 40. Kb2
{[%clk 0:00:02.6]} 40... f4 {[%clk 0:01:09.4]} 41. c3 {[%clk 0:00:02.3]} 41...
Ra2+ {[%clk 0:01:08]} 42. Kc1 {[%clk 0:00:02.4]} 42... Bxe5 {[%clk 0:01:08.2]}
43. Rxe5 {[%clk 0:00:02.5]} 43... Rxh2 {[%clk 0:01:08.3]} 0-1

[Event "Late-Titled-Tuesday-Blitz-December-26-2023"]
[Site "Chess.com"]
[Date "2023.12.26"]
[Round "5"]
[White "PushingpawnsNYC"]
[Black "Vision_64"]
[Result "1/2-1/2"]
[WhiteElo "2481"]
[BlackElo "2307"]
[TimeControl "180+1"]
[EndTime "14:54:15 PST"]
[Termination "Game drawn by repetition"]

1. e4 {[%clk 0:03:00.9]} 1... e6 {[%clk 0:02:56.9]} 2. d4 {[%clk 0:02:59.1]}
2... d5 {[%clk 0:02:55.9]} 3. Bd3 {[%clk 0:03:00]} 3... Nc6 {[%clk 0:02:52.1]}
4. c3 {[%clk 0:02:54]} 4... e5 {[%clk 0:02:35.5]} 5. Qe2 {[%clk 0:02:46.6]} 5...
Be7 {[%clk 0:02:22.1]} 6. exd5 {[%clk 0:02:40.8]} 6... Qxd5 {[%clk 0:02:21.7]}
7. Be4 {[%clk 0:02:40.7]} 7... Qd6 {[%clk 0:02:10.5]} 8. d5 {[%clk 0:02:27.4]}
8... Nb8 {[%clk 0:02:05.3]} 9. c4 {[%clk 0:02:13.6]} 9... Nf6 {[%clk 0:01:56.4]}
10. Nc3 {[%clk 0:02:09.9]} 10... Nxe4 {[%clk 0:01:43.1]} 11. Nxe4 {[%clk
0:02:08.5]} 11... Qb4+ {[%clk 0:01:42.7]} 12. Bd2 {[%clk 0:02:08]} 12... Qxb2
{[%clk 0:01:40]} 13. Rd1 {[%clk 0:01:50.3]} 13... O-O {[%clk 0:01:30.6]} 14. Nf3
{[%clk 0:01:40.4]} 14... Bg4 {[%clk 0:01:22.5]} 15. h3 {[%clk 0:01:24.3]} 15...
Bh5 {[%clk 0:01:13]} 16. O-O {[%clk 0:01:19.4]} 16... f5 {[%clk 0:01:08.3]} 17.
Nc3 {[%clk 0:01:17.1]} 17... e4 {[%clk 0:01:02.3]} 18. g4 {[%clk 0:01:12.2]}
18... fxg4 {[%clk 0:00:50.5]} 19. Qxe4 {[%clk 0:01:10.1]} 19... gxf3 {[%clk
0:00:42.5]} 20. Qxe7 {[%clk 0:01:03.3]} 20... Na6 {[%clk 0:00:26.2]} 21. Rfe1
{[%clk 0:00:56.1]} 21... Rae8 {[%clk 0:00:24.6]} 22. Qg5 {[%clk 0:00:52.1]}
22... Bg6 {[%clk 0:00:22.4]} 23. Nb5 {[%clk 0:00:35.8]} 23... Rxe1+ {[%clk
0:00:20.5]} 24. Rxe1 {[%clk 0:00:32.4]} 24... Rf5 {[%clk 0:00:19.5]} 25. Qd8+
{[%clk 0:00:30]} 25... Rf8 {[%clk 0:00:19.3]} 26. Qg5 {[%clk 0:00:28.9]} 26...
Rf5 {[%clk 0:00:18.9]} 27. Qd8+ {[%clk 0:00:22.2]} 27... Rf8 {[%clk 0:00:18.8]}
28. Qg5 {[%clk 0:00:22.7]} 1/2-1/2

[Event "Late-Titled-Tuesday-Blitz-December-26-2023"]
[Site "Chess.com"]
[Date "2023.12.26"]
[Round "5"]
[White "Mystery2007"]
[Black "Genghis_K"]
[Result "0-1"]
[WhiteElo "2588"]
[BlackElo "2866"]
[TimeControl "180+1"]
[EndTime "14:54:30 PST"]
[Termination "Genghis_K won on time"]

1. Nf3 {[%clk 0:03:00.9]} 1... Nf6 {[%clk 0:02:53.6]} 2. b3 {[%clk 0:02:57.8]}
2... d5 {[%clk 0:02:49.9]} 3. Bb2 {[%clk 0:02:58.1]} 3... Bf5 {[%clk 0:02:50.6]}
4. d3 {[%clk 0:02:55.6]} 4... h6 {[%clk 0:02:48.5]} 5. Nbd2 {[%clk 0:02:55.7]}
5... e6 {[%clk 0:02:48.6]} 6. c4 {[%clk 0:02:56.1]} 6... Be7 {[%clk 0:02:47.8]}
7. g3 {[%clk 0:02:55.3]} 7... O-O {[%clk 0:02:47.7]} 8. Bg2 {[%clk 0:02:55.6]}
8... c6 {[%clk 0:02:47.7]} 9. O-O {[%clk 0:02:54]} 9... a5 {[%clk 0:02:45.5]}
10. a3 {[%clk 0:02:53.3]} 10... Na6 {[%clk 0:02:45.8]} 11. Qc2 {[%clk
0:02:50.2]} 11... Bh7 {[%clk 0:02:45.1]} 12. Rfe1 {[%clk 0:02:47.6]} 12... Re8
{[%clk 0:02:44.1]} 13. Ne5 {[%clk 0:02:46]} 13... Nd7 {[%clk 0:02:43.6]} 14.
Nxd7 {[%clk 0:02:44.9]} 14... Qxd7 {[%clk 0:02:44]} 15. Rad1 {[%clk 0:02:40.2]}
15... Bf8 {[%clk 0:02:42.3]} 16. e4 {[%clk 0:02:36]} 16... Nc5 {[%clk
0:02:32.7]} 17. Nf3 {[%clk 0:02:06.2]} 17... dxe4 {[%clk 0:02:16.7]} 18. dxe4
{[%clk 0:02:06.3]} 18... Qc7 {[%clk 0:02:14.2]} 19. Ne5 {[%clk 0:01:57.9]} 19...
Rad8 {[%clk 0:02:00.2]} 20. Ng4 {[%clk 0:01:29.6]} 20... Rxd1 {[%clk 0:01:46.9]}
21. Rxd1 {[%clk 0:01:29]} 21... Rd8 {[%clk 0:01:46.6]} 22. f3 {[%clk 0:01:06.5]}
22... Rxd1+ {[%clk 0:01:18.3]} 23. Qxd1 {[%clk 0:01:07.4]} 23... Qb6 {[%clk
0:01:18.5]} 24. Qd4 {[%clk 0:00:52.8]} 24... f6 {[%clk 0:01:03.2]} 25. Bh3
{[%clk 0:00:35.4]} 25... e5 {[%clk 0:00:54.1]} 26. Qf2 {[%clk 0:00:15.4]} 26...
Qxb3 {[%clk 0:00:51.6]} 27. Ne3 {[%clk 0:00:12.1]} 27... Nd3 {[%clk 0:00:48.2]}
28. Be6+ {[%clk 0:00:09.4]} 28... Kh8 {[%clk 0:00:47.7]} 29. Qd2 {[%clk
0:00:09.9]} 29... Nxb2 {[%clk 0:00:43.4]} 30. Nf1 {[%clk 0:00:01.2]} 30... Qd3
{[%clk 0:00:27.3]} 0-1

[Event "Late-Titled-Tuesday-Blitz-December-26-2023"]
[Site "Chess.com"]
[Date "2023.12.26"]
[Round "5"]
[White "KnobbedHornbill"]
[Black "PawnStorn"]
[Result "0-1"]
[WhiteElo "2510"]
[BlackElo "2398"]
[TimeControl "180+1"]
[EndTime "14:54:31 PST"]
[Termination "PawnStorn won by resignation"]

1. d4 {[%clk 0:03:00.9]} 1... Nf6 {[%clk 0:02:53.9]} 2. c4 {[%clk 0:03:01.4]}
2... e6 {[%clk 0:02:54.1]} 3. g3 {[%clk 0:03:01.8]} 3... d5 {[%clk 0:02:53.7]}
4. Nf3 {[%clk 0:03:02.3]} 4... dxc4 {[%clk 0:02:52.3]} 5. Bg2 {[%clk 0:03:02.9]}
5... b5 {[%clk 0:02:52.5]} 6. Ne5 {[%clk 0:02:58.2]} 6... Nd5 {[%clk 0:02:48.8]}
7. a4 {[%clk 0:02:52.8]} 7... c6 {[%clk 0:02:26.3]} 8. O-O {[%clk 0:02:48.2]}
8... Bb7 {[%clk 0:02:21.1]} 9. e4 {[%clk 0:02:44.6]} 9... Nb6 {[%clk 0:02:17.9]}
10. axb5 {[%clk 0:02:07.4]} 10... cxb5 {[%clk 0:02:16.1]} 11. Qh5 {[%clk
0:02:06.5]} 11... Qc7 {[%clk 0:02:10.3]} 12. Bf4 {[%clk 0:01:57.6]} 12... Bd6
{[%clk 0:01:58.1]} 13. Nxf7 {[%clk 0:01:48.7]} 13... Qxf7 {[%clk 0:01:52.8]} 14.
Qxf7+ {[%clk 0:01:48.5]} 14... Kxf7 {[%clk 0:01:53.7]} 15. Bxd6 {[%clk
0:01:48.5]} 15... Nc6 {[%clk 0:01:53.1]} 16. Bc5 {[%clk 0:01:34.2]} 16... Na4
{[%clk 0:01:52]} 17. Rxa4 {[%clk 0:01:30.8]} 17... bxa4 {[%clk 0:01:51.2]} 18.
Na3 {[%clk 0:01:28.4]} 18... e5 {[%clk 0:01:44.9]} 19. d5 {[%clk 0:01:24.9]}
19... Na5 {[%clk 0:01:40.1]} 20. Bb4 {[%clk 0:01:23.1]} 20... Nb3 {[%clk
0:01:34.4]} 21. Nxc4 {[%clk 0:01:23.2]} 21... Ba6 {[%clk 0:01:19.6]} 22. Nxe5+
{[%clk 0:01:17.9]} 22... Kf6 {[%clk 0:01:19.6]} 23. Nd7+ {[%clk 0:01:15.2]}
23... Kf7 {[%clk 0:01:17.6]} 24. Re1 {[%clk 0:01:11.1]} 24... Nd4 {[%clk
0:01:10.7]} 25. f4 {[%clk 0:01:04.5]} 25... Nc2 {[%clk 0:01:10.1]} 26. Ne5+
{[%clk 0:01:00.5]} 26... Ke8 {[%clk 0:01:07.9]} 27. Rc1 {[%clk 0:00:34.3]} 27...
Nxb4 {[%clk 0:01:07.2]} 28. Rc7 {[%clk 0:00:35.2]} 28... Nd3 {[%clk 0:01:00.2]}
29. Nc6 {[%clk 0:00:31.1]} 29... Bb5 {[%clk 0:00:46.7]} 30. Nd4 {[%clk
0:00:30.7]} 30... Bd7 {[%clk 0:00:45.1]} 31. e5 {[%clk 0:00:29.3]} 31... Rc8
{[%clk 0:00:45.2]} 32. Rxa7 {[%clk 0:00:25.1]} 32... Rc1+ {[%clk 0:00:45.2]} 33.
Bf1 {[%clk 0:00:25.2]} 33... Bh3 {[%clk 0:00:45.5]} 34. Ra8+ {[%clk 0:00:11]}
34... Kf7 {[%clk 0:00:46.1]} 35. Ra7+ {[%clk 0:00:11.9]} 35... Kg6 {[%clk
0:00:46.3]} 36. f5+ {[%clk 0:00:11.7]} 36... Kh5 {[%clk 0:00:45.1]} 37. g4+
{[%clk 0:00:11.3]} 37... Kh6 {[%clk 0:00:41.1]} 38. g5+ {[%clk 0:00:10]} 38...
Kh5 {[%clk 0:00:39.6]} 0-1

[Event "Late-Titled-Tuesday-Blitz-December-26-2023"]
[Site "Chess.com"]
[Date "2023.12.26"]
[Round "5"]
[White "SocoLoco"]
[Black "SHIVACalypso"]
[Result "1-0"]
[WhiteElo "2125"]
[BlackElo "2383"]
[TimeControl "180+1"]
[EndTime "14:54:32 PST"]
[Termination "SocoLoco won by checkmate"]

1. e4 {[%clk 0:02:59.8]} 1... c6 {[%clk 0:02:54.6]} 2. b3 {[%clk 0:02:59]} 2...
d5 {[%clk 0:02:51.6]} 3. Bb2 {[%clk 0:02:59.2]} 3... dxe4 {[%clk 0:02:48.8]} 4.
Nc3 {[%clk 0:02:59.1]} 4... Nf6 {[%clk 0:02:49.1]} 5. Nge2 {[%clk 0:02:59.1]}
5... e5 {[%clk 0:02:42.1]} 6. Ng3 {[%clk 0:02:58.5]} 6... Bg4 {[%clk 0:02:42.4]}
7. Be2 {[%clk 0:02:58.4]} 7... Bxe2 {[%clk 0:02:42.1]} 8. Qxe2 {[%clk
0:02:59.3]} 8... Bd6 {[%clk 0:02:42.4]} 9. Ncxe4 {[%clk 0:02:55.9]} 9... Nxe4
{[%clk 0:02:42.5]} 10. Nxe4 {[%clk 0:02:55.8]} 10... Bc7 {[%clk 0:02:42.9]} 11.
d4 {[%clk 0:02:38.8]} 11... O-O {[%clk 0:02:38]} 12. O-O-O {[%clk 0:02:17.2]}
12... exd4 {[%clk 0:02:37.2]} 13. Rxd4 {[%clk 0:02:17]} 13... Qe7 {[%clk
0:02:34.8]} 14. Re1 {[%clk 0:01:53.3]} 14... Na6 {[%clk 0:02:19.2]} 15. Rd3
{[%clk 0:01:25.9]} 15... Qe6 {[%clk 0:02:06.5]} 16. Re3 {[%clk 0:01:18.9]} 16...
Bf4 {[%clk 0:02:06]} 17. Qh5 {[%clk 0:00:47.8]} 17... Bxe3+ {[%clk 0:02:05.7]}
18. Rxe3 {[%clk 0:00:48.4]} 18... Qg6 {[%clk 0:02:02]} 19. Qh4 {[%clk
0:00:26.7]} 19... Rfe8 {[%clk 0:02:02.2]} 20. Nf6+ {[%clk 0:00:17.8]} 20... gxf6
{[%clk 0:01:43.9]} 21. Rg3 {[%clk 0:00:17.7]} 21... Rad8 {[%clk 0:01:41.5]} 22.
Bc3 {[%clk 0:00:16.9]} 22... Re6 {[%clk 0:01:32.5]} 23. Rxg6+ {[%clk 0:00:16.3]}
23... fxg6 {[%clk 0:01:33.4]} 24. Bxf6 {[%clk 0:00:16.4]} 24... Rdd6 {[%clk
0:01:30.6]} 25. Bc3 {[%clk 0:00:16.4]} 25... Nc5 {[%clk 0:01:25.4]} 26. Kb2
{[%clk 0:00:16.3]} 26... Ne4 {[%clk 0:01:23]} 27. f3 {[%clk 0:00:16.2]} 27...
Nxc3 {[%clk 0:01:22.8]} 28. Kxc3 {[%clk 0:00:17.1]} 28... Re3+ {[%clk
0:01:21.9]} 29. Kb2 {[%clk 0:00:16.9]} 29... Re2 {[%clk 0:01:21.6]} 30. Qc4+
{[%clk 0:00:16.4]} 30... Ree6 {[%clk 0:01:21.5]} 31. f4 {[%clk 0:00:16.6]} 31...
Kg7 {[%clk 0:01:21.4]} 32. g4 {[%clk 0:00:17.2]} 32... Re7 {[%clk 0:01:15.1]}
33. f5 {[%clk 0:00:17.3]} 33... gxf5 {[%clk 0:01:15]} 34. gxf5 {[%clk 0:00:18]}
34... Red7 {[%clk 0:01:14.2]} 35. Qg4+ {[%clk 0:00:17.9]} 35... Kf6 {[%clk
0:01:13.7]} 36. h4 {[%clk 0:00:17.4]} 36... Rd4 {[%clk 0:01:11.7]} 37. Qg5+
{[%clk 0:00:17.2]} 37... Kf7 {[%clk 0:01:11.6]} 38. Qh6 {[%clk 0:00:15.2]} 38...
Kg8 {[%clk 0:01:05.1]} 39. Qe6+ {[%clk 0:00:13.3]} 39... Kf8 {[%clk 0:01:04.4]}
40. h5 {[%clk 0:00:10.7]} 40... R4d6 {[%clk 0:01:03.7]} 41. Qe5 {[%clk
0:00:10.6]} 41... Kg8 {[%clk 0:00:55.9]} 42. h6 {[%clk 0:00:10.9]} 42... b6
{[%clk 0:00:51.8]} 43. Qe8# {[%clk 0:00:09.3]} 1-0

[Event "Late-Titled-Tuesday-Blitz-December-26-2023"]
[Site "Chess.com"]
[Date "2023.12.26"]
[Round "5"]
[White "Gyulamiryan-koryun"]
[Black "Felix-Rose"]
[Result "0-1"]
[WhiteElo "2024"]
[BlackElo "2231"]
[TimeControl "180+1"]
[EndTime "14:54:44 PST"]
[Termination "Felix-Rose won on time"]

1. e4 {[%clk 0:02:52.6]} 1... g6 {[%clk 0:02:58.7]} 2. d4 {[%clk 0:02:50.9]}
2... Bg7 {[%clk 0:02:58.8]} 3. f4 {[%clk 0:02:51.5]} 3... d6 {[%clk 0:02:57.5]}
4. Nf3 {[%clk 0:02:51.4]} 4... Nf6 {[%clk 0:02:57.4]} 5. Nc3 {[%clk 0:02:48.8]}
5... O-O {[%clk 0:02:57.1]} 6. Be2 {[%clk 0:02:42.7]} 6... c5 {[%clk 0:02:55.6]}
7. Be3 {[%clk 0:02:40.7]} 7... cxd4 {[%clk 0:02:50.1]} 8. Nxd4 {[%clk
0:02:33.3]} 8... Qa5 {[%clk 0:02:41.1]} 9. O-O {[%clk 0:02:32.6]} 9... e5 {[%clk
0:02:37.7]} 10. Nb3 {[%clk 0:02:26]} 10... Qc7 {[%clk 0:02:28.5]} 11. f5 {[%clk
0:02:23]} 11... a6 {[%clk 0:02:25]} 12. Bg5 {[%clk 0:02:16.6]} 12... gxf5 {[%clk
0:02:24.8]} 13. Bxf6 {[%clk 0:02:09.7]} 13... Bxf6 {[%clk 0:02:19.7]} 14. Nd5
{[%clk 0:02:09.8]} 14... Qd8 {[%clk 0:02:19.7]} 15. Nxf6+ {[%clk 0:01:55.9]}
15... Qxf6 {[%clk 0:02:19.6]} 16. Bc4 {[%clk 0:01:37.2]} 16... f4 {[%clk
0:02:14.3]} 17. Nd2 {[%clk 0:01:27]} 17... Nc6 {[%clk 0:02:12.8]} 18. c3 {[%clk
0:01:25.3]} 18... Kh8 {[%clk 0:02:11.5]} 19. Nf3 {[%clk 0:01:24.7]} 19... Rg8
{[%clk 0:02:10.6]} 20. Qd5 {[%clk 0:01:14.1]} 20... Be6 {[%clk 0:01:55.3]} 21.
Qd3 {[%clk 0:01:06.7]} 21... Bh3 {[%clk 0:01:49.2]} 22. Ne1 {[%clk 0:01:04.9]}
22... Qg6 {[%clk 0:01:19.6]} 23. Qxh3 {[%clk 0:01:00.1]} 23... Rg7 {[%clk
0:01:14.8]} 24. Be2 {[%clk 0:00:46.7]} 24... Qxe4 {[%clk 0:01:13.2]} 25. Bf3
{[%clk 0:00:44.2]} 25... Qe3+ {[%clk 0:01:13.1]} 26. Rf2 {[%clk 0:00:42.8]}
26... e4 {[%clk 0:01:12.9]} 27. Nc2 {[%clk 0:00:33.6]} 27... Qd3 {[%clk
0:00:48.4]} 28. Rd1 {[%clk 0:00:30.3]} 28... Qc4 {[%clk 0:00:48.7]} 29. Na3
{[%clk 0:00:23.9]} 29... Qa4 {[%clk 0:00:42.3]} 30. Rxd6 {[%clk 0:00:19.2]}
30... exf3 {[%clk 0:00:40.3]} 31. Qxf3 {[%clk 0:00:18.6]} 31... Rag8 {[%clk
0:00:35.2]} 32. Rdd2 {[%clk 0:00:01.5]} 32... Ne5 {[%clk 0:00:33]} 0-1

[Event "Late-Titled-Tuesday-Blitz-December-26-2023"]
[Site "Chess.com"]
[Date "2023.12.26"]
[Round "5"]
[White "MightyGMpretender"]
[Black "nindjaxx8"]
[Result "0-1"]
[WhiteElo "2744"]
[BlackElo "2590"]
[TimeControl "180+1"]
[EndTime "14:54:47 PST"]
[Termination "nindjaxx8 won by checkmate"]

1. d4 {[%clk 0:03:00.9]} 1... d5 {[%clk 0:02:59.6]} 2. Nf3 {[%clk 0:03:01.8]}
2... Nf6 {[%clk 0:02:59.6]} 3. e3 {[%clk 0:03:02.7]} 3... e6 {[%clk 0:03:00]} 4.
Bd3 {[%clk 0:03:03.4]} 4... Be7 {[%clk 0:03:00.7]} 5. b3 {[%clk 0:03:04.1]} 5...
O-O {[%clk 0:03:01.4]} 6. Bb2 {[%clk 0:03:04.8]} 6... b6 {[%clk 0:03:02.1]} 7.
Nbd2 {[%clk 0:03:05.1]} 7... Bb7 {[%clk 0:03:02.5]} 8. Ne5 {[%clk 0:03:05.8]}
8... Nbd7 {[%clk 0:03:02.6]} 9. f4 {[%clk 0:03:06.5]} 9... Ne4 {[%clk
0:03:02.4]} 10. O-O {[%clk 0:03:05.4]} 10... f5 {[%clk 0:03:01.9]} 11. Kh1
{[%clk 0:02:42.6]} 11... c5 {[%clk 0:02:49.3]} 12. Nxe4 {[%clk 0:02:23.5]} 12...
fxe4 {[%clk 0:02:47.8]} 13. Bb5 {[%clk 0:02:23.8]} 13... Nxe5 {[%clk 0:02:46.4]}
14. fxe5 {[%clk 0:02:21.1]} 14... Bg5 {[%clk 0:02:35.6]} 15. Qg4 {[%clk
0:02:19.6]} 15... Qe7 {[%clk 0:02:31.3]} 16. Bd7 {[%clk 0:02:00.9]} 16... Qxd7
{[%clk 0:02:09.1]} 17. Qxg5 {[%clk 0:02:01.5]} 17... Qb5 {[%clk 0:02:09.4]} 18.
Rf6 {[%clk 0:01:46.9]} 18... Qe2 {[%clk 0:02:00.5]} 19. h4 {[%clk 0:01:34.2]}
19... Qxc2 {[%clk 0:01:51.2]} 20. Ba3 {[%clk 0:01:34.2]} 20... Ba6 {[%clk
0:01:44.3]} 21. Rxe6 {[%clk 0:01:21.2]} 21... Rf7 {[%clk 0:01:33.3]} 22. Rf6
{[%clk 0:01:17]} 22... Raf8 {[%clk 0:01:29]} 23. dxc5 {[%clk 0:01:11.6]} 23...
h6 {[%clk 0:01:14.6]} 24. Qf5 {[%clk 0:00:53.6]} 24... bxc5 {[%clk 0:01:02.7]}
25. Rxf7 {[%clk 0:00:43.5]} 25... Rxf7 {[%clk 0:01:02.4]} 26. Qe6 {[%clk
0:00:44.2]} 26... Qf2 {[%clk 0:00:43.2]} 27. Bxc5 {[%clk 0:00:24.2]} 27... Qxh4+
{[%clk 0:00:34.5]} 28. Kg1 {[%clk 0:00:23.2]} 28... Qf2+ {[%clk 0:00:34.7]} 29.
Kh2 {[%clk 0:00:23.9]} 29... Kh7 {[%clk 0:00:21.2]} 30. Qxd5 {[%clk 0:00:06.2]}
30... Rf5 {[%clk 0:00:17.1]} 31. Qxe4 {[%clk 0:00:06]} 31... Bb7 {[%clk
0:00:17.7]} 32. Qg4 {[%clk 0:00:05.3]} 32... Rh5+ {[%clk 0:00:16.5]} 33. Qh3
{[%clk 0:00:02.6]} 33... Qxg2# {[%clk 0:00:16.9]} 0-1